[Event "Titled Tuesday Blitz December 14 2021"]
[White "Demchenko, Anton"]
[Black "Wagner, Dinara"]
[WhiteFideId "4160258"]
[BlackFideId "24157570"]
[WhiteElo "2531"]
[BlackElo "2216"]
[Result "0-1"]
[Round "06"]
[TimeControl "180+1"]
[Date "2021.12.15"]
[WhiteClock "0:00:01"]
[BlackClock "0:00:07"]

1. e4 {[%clk 0:03:00]}  c5 {[%clk 0:02:59]} 2. Nf3 {[%clk 0:03:01]}  d6 {[%clk 0:03:00]} 3. d4 {[%clk 0:03:01]}  cxd4 {[%clk 0:03:00]} 4. Qxd4 {[%clk 0:03:02]}  Nf6 {[%clk 0:03:00]} 5. Nc3 {[%clk 0:03:02]}  Nc6 {[%clk 0:02:52]} 6. Qe3 {[%clk 0:02:58]}  e6 {[%clk 0:02:49]} 7. b3 {[%clk 0:02:57]}  Be7 {[%clk 0:02:49]} 8. Bb2 {[%clk 0:02:58]}  a6 {[%clk 0:02:49]} 9. O-O-O {[%clk 0:02:58]}  Qc7 {[%clk 0:02:48]} 10. Rg1 {[%clk 0:02:51]}  Ng4 {[%clk 0:02:44]} 11. Qd2 {[%clk 0:02:45]}  Qb6 {[%clk 0:02:43]} 12. h3 {[%clk 0:02:30]}  Nf6 {[%clk 0:02:12]} 13. g4 {[%clk 0:02:25]}  h6 {[%clk 0:02:12]} 14. h4 {[%clk 0:02:22]}  Ne5 {[%clk 0:02:05]} 15. Nxe5 {[%clk 0:02:16]}  dxe5 {[%clk 0:02:05]} 16. g5 {[%clk 0:02:14]}  hxg5 {[%clk 0:02:04]} 17. hxg5 {[%clk 0:02:15]}  Nh5 {[%clk 0:02:01]} 18. Rh1 {[%clk 0:02:06]}  g6 {[%clk 0:02:00]} 19. Be2 {[%clk 0:01:53]}  Qd4 {[%clk 0:01:42]} 20. Qe1 {[%clk 0:01:38]}  Bxg5+ {[%clk 0:01:41]} 21. Kb1 {[%clk 0:01:38]}  Qb6 {[%clk 0:01:39]} 22. Bxh5 {[%clk 0:01:34]}  gxh5 {[%clk 0:01:39]} 23. Qg1 {[%clk 0:01:32]}  Bf6 {[%clk 0:01:38]} 24. Na4 {[%clk 0:01:27]}  Qc7 {[%clk 0:01:35]} 25. f4 {[%clk 0:01:26]}  b5 {[%clk 0:01:07]} 26. Rxh5 {[%clk 0:01:15]}  Rf8 {[%clk 0:00:55]} 27. Nc5 {[%clk 0:00:59]}  Be7 {[%clk 0:00:52]} 28. Nd3 {[%clk 0:00:59]}  exf4 {[%clk 0:00:47]} 29. Rh8 {[%clk 0:00:44]}  Bb7 {[%clk 0:00:45]} 30. Be5 {[%clk 0:00:23]}  Qc6 {[%clk 0:00:45]} 31. Rxf8+ {[%clk 0:00:16]}  Bxf8 {[%clk 0:00:45]} 32. Qg5 {[%clk 0:00:17]}  Qxe4 {[%clk 0:00:42]} 33. Re1 {[%clk 0:00:16]}  Qc6 {[%clk 0:00:40]} 34. Qxf4 {[%clk 0:00:13]}  Rc8 {[%clk 0:00:39]} 35. Qd2 {[%clk 0:00:10]}  Qg2 {[%clk 0:00:38]} 36. Re2 {[%clk 0:00:09]}  Qh1+ {[%clk 0:00:37]} 37. Kb2 {[%clk 0:00:09]}  Qd5 {[%clk 0:00:35]} 38. Qf4 {[%clk 0:00:09]}  a5 {[%clk 0:00:25]} 39. Rh2 {[%clk 0:00:05]}  a4 {[%clk 0:00:23]} 40. Rh8 {[%clk 0:00:05]}  a3+ {[%clk 0:00:23]} 41. Kc1 {[%clk 0:00:06]}  Qxd3 {[%clk 0:00:21]} 42. Qf2 {[%clk 0:00:02]}  Be4 {[%clk 0:00:09]} 43. Rh2 {[%clk 0:00:02]}  Qd5 {[%clk 0:00:07]} 44. Bf6 {[%clk 0:00:01]}  Rxc2+ {[%clk 0:00:07]} 45. Qxc2 {[%clk 0:00:01]}  Bxc2 {[%clk 0:00:08]} 46. Kxc2 {[%clk 0:00:01]}  Qc6+ {[%clk 0:00:07]} 0-1


[Site "https://www.chess.com"]

[Event "Titled Tuesday Blitz December 14 2021"]
[White "Dobrov, Vladimir"]
[Black "Krutko, Anatoly"]
[WhiteFideId "4136594"]
[BlackFideId "4185862"]
[WhiteElo "2614"]
[BlackElo "2378"]
[Result "1-0"]
[Round "06"]
[TimeControl "180+1"]
[Date "2021.12.14"]
[WhiteClock "0:00:18"]
[BlackClock "0:00:02"]

1. d4 {[%clk 0:03:00]}  Nf6 {[%clk 0:02:59]} 2. c4 {[%clk 0:03:00]}  e6 {[%clk 0:02:59]} 3. Nf3 {[%clk 0:02:59]}  d5 {[%clk 0:02:57]} 4. Nc3 {[%clk 0:02:59]}  Bb4 {[%clk 0:02:57]} 5. Qa4+ {[%clk 0:02:54]}  Nc6 {[%clk 0:02:57]} 6. a3 {[%clk 0:02:53]}  Bxc3+ {[%clk 0:02:56]} 7. bxc3 {[%clk 0:02:54]}  O-O {[%clk 0:02:55]} 8. e3 {[%clk 0:02:49]}  Bd7 {[%clk 0:02:53]} 9. Qc2 {[%clk 0:02:49]}  Ne4 {[%clk 0:02:47]} 10. Bd3 {[%clk 0:02:48]}  f5 {[%clk 0:02:46]} 11. cxd5 {[%clk 0:02:48]}  exd5 {[%clk 0:02:46]} 12. c4 {[%clk 0:02:48]}  Ne7 {[%clk 0:02:33]} 13. Ne5 {[%clk 0:02:46]}  c6 {[%clk 0:02:32]} 14. f3 {[%clk 0:02:46]}  Nd6 {[%clk 0:02:32]} 15. a4 {[%clk 0:02:45]}  Be6 {[%clk 0:02:30]} 16. Ba3 {[%clk 0:02:31]}  f4 {[%clk 0:01:25]} 17. Bxh7+ {[%clk 0:02:21]}  Kh8 {[%clk 0:01:25]} 18. cxd5 {[%clk 0:02:16]}  cxd5 {[%clk 0:01:18]} 19. exf4 {[%clk 0:01:53]}  Rc8 {[%clk 0:00:45]} 20. Qb1 {[%clk 0:01:52]}  Rc3 {[%clk 0:00:30]} 21. O-O {[%clk 0:01:50]}  Rxf4 {[%clk 0:00:18]} 22. Bb4 {[%clk 0:01:35]}  Rc7 {[%clk 0:00:12]} 23. Ng6+ {[%clk 0:01:23]}  Nxg6 {[%clk 0:00:12]} 24. Qxg6 {[%clk 0:01:24]}  Rf6 {[%clk 0:00:11]} 25. Qd3 {[%clk 0:01:09]}  Rh6 {[%clk 0:00:09]} 26. Bg6 {[%clk 0:01:05]}  Nc4 {[%clk 0:00:05]} 27. Bf5 {[%clk 0:00:45]}  Bxf5 {[%clk 0:00:04]} 28. Qxf5 {[%clk 0:00:45]}  Ne3 {[%clk 0:00:03]} 29. Qe5 {[%clk 0:00:33]}  Nxf1 {[%clk 0:00:03]} 30. Rxf1 {[%clk 0:00:33]}  Rf7 {[%clk 0:00:02]} 31. Bd2 {[%clk 0:00:30]}  Rhf6 {[%clk 0:00:02]} 32. Bg5 {[%clk 0:00:30]}  Qf8 {[%clk 0:00:01]} 33. Bxf6 {[%clk 0:00:30]}  Rxf6 {[%clk 0:00:02]} 34. Qxd5 {[%clk 0:00:31]}  Rd6 {[%clk 0:00:02]} 35. Qxb7 {[%clk 0:00:30]}  Qf4 {[%clk 0:00:02]} 36. Qxa7 {[%clk 0:00:28]}  Qe3+ {[%clk 0:00:02]} 37. Kh1 {[%clk 0:00:27]}  Rxd4 {[%clk 0:00:03]} 38. a5 {[%clk 0:00:21]}  Qe2 {[%clk 0:00:02]} 39. Qxd4 {[%clk 0:00:17]}  Qxf1+ {[%clk 0:00:02]} 40. Qg1 {[%clk 0:00:18]}  Qe2 {[%clk 0:00:02]} 41. Qa1 {[%clk 0:00:17]}  Qa6 {[%clk 0:00:01]} 42. h3 {[%clk 0:00:17]}  Kh7 {[%clk 0:00:01]} 43. Qb1+ {[%clk 0:00:17]}  Kh6 {[%clk 0:00:01]} 44. Qb6+ {[%clk 0:00:18]}  g6 {[%clk 0:00:02]} 45. Qxa6 {[%clk 0:00:18]} 1-0


[Site "https://www.chess.com"]

[Event "Titled Tuesday Blitz December 14 2021"]
[White "Dubov, Daniil"]
[Black "Bacrot, Etienne"]
[WhiteFideId "24126055"]
[BlackFideId "605506"]
[WhiteElo "2749"]
[BlackElo "2673"]
[Result "0-1"]
[Round "06"]
[TimeControl "180+1"]
[Date "2021.12.14"]
[WhiteClock "0:00:27"]
[BlackClock "0:00:16"]

1. e4 {[%clk 0:03:00]}  e5 {[%clk 0:02:59]} 2. Nf3 {[%clk 0:03:01]}  Nc6 {[%clk 0:02:59]} 3. Bc4 {[%clk 0:03:01]}  Bc5 {[%clk 0:03:00]} 4. c3 {[%clk 0:03:01]}  Nf6 {[%clk 0:02:59]} 5. d4 {[%clk 0:03:01]}  exd4 {[%clk 0:02:59]} 6. b4 {[%clk 0:03:02]}  Bb6 {[%clk 0:02:58]} 7. e5 {[%clk 0:03:02]}  d5 {[%clk 0:02:56]} 8. exf6 {[%clk 0:03:02]}  dxc4 {[%clk 0:02:56]} 9. Qe2+ {[%clk 0:03:02]}  Be6 {[%clk 0:02:55]} 10. b5 {[%clk 0:03:02]}  Na5 {[%clk 0:02:11]} 11. fxg7 {[%clk 0:02:54]}  Rg8 {[%clk 0:02:11]} 12. cxd4 {[%clk 0:02:55]}  Rxg7 {[%clk 0:02:06]} 13. Nc3 {[%clk 0:02:54]}  Bxd4 {[%clk 0:01:43]} 14. Bb2 {[%clk 0:02:44]}  Bf6 {[%clk 0:01:38]} 15. Rd1 {[%clk 0:02:22]}  Qe7 {[%clk 0:01:37]} 16. Ne4 {[%clk 0:02:21]}  Qb4+ {[%clk 0:01:17]} 17. Rd2 {[%clk 0:02:07]}  Bxb2 {[%clk 0:01:14]} 18. O-O {[%clk 0:02:07]}  c3 {[%clk 0:01:09]} 19. Nf6+ {[%clk 0:01:57]}  Kf8 {[%clk 0:01:08]} 20. Rd4 {[%clk 0:01:56]}  Qe7 {[%clk 0:00:56]} 21. Qe5 {[%clk 0:01:55]}  c2 {[%clk 0:00:49]} 22. Ng5 {[%clk 0:01:54]}  Bxd4 {[%clk 0:00:43]} 23. Qxd4 {[%clk 0:01:47]}  Bf5 {[%clk 0:00:33]} 24. h4 {[%clk 0:01:02]}  Rd8 {[%clk 0:00:31]} 25. Nd5 {[%clk 0:01:03]}  Qd6 {[%clk 0:00:24]} 26. Re1 {[%clk 0:00:44]}  Qxd5 {[%clk 0:00:21]} 27. Qb4+ {[%clk 0:00:44]}  Qd6 {[%clk 0:00:20]} 28. Qxa5 {[%clk 0:00:41]}  h6 {[%clk 0:00:20]} 29. Nf3 {[%clk 0:00:36]}  Be4 {[%clk 0:00:19]} 30. Rxe4 {[%clk 0:00:30]}  c1=Q+ {[%clk 0:00:19]} 31. Re1 {[%clk 0:00:31]}  Qxe1+ {[%clk 0:00:18]} 32. Nxe1 {[%clk 0:00:31]}  Qd2 {[%clk 0:00:17]} 33. Qa3+ {[%clk 0:00:31]}  Kg8 {[%clk 0:00:17]} 34. Nf3 {[%clk 0:00:32]}  Qd1+ {[%clk 0:00:17]} 35. Kh2 {[%clk 0:00:32]}  Rd3 {[%clk 0:00:17]} 36. Qe7 {[%clk 0:00:30]}  Rxf3 {[%clk 0:00:15]} 37. Qe8+ {[%clk 0:00:26]}  Kh7 {[%clk 0:00:16]} 38. Qe4+ {[%clk 0:00:27]}  f5 {[%clk 0:00:16]} 0-1


[Site "https://www.chess.com"]

[Event "Titled Tuesday Blitz December 14 2021"]
[White "Gheorghiu, Calin"]
[Black "Goltseva, Ekaterina"]
[WhiteFideId "1200305"]
[BlackFideId "24173770"]
[WhiteElo "2213"]
[BlackElo "2163"]
[Result "1-0"]
[Round "06"]
[TimeControl "180+1"]
[Date "2021.12.15"]
[WhiteClock "0:00:17"]
[BlackClock "0:00:13"]

1. e4 {[%clk 0:03:00]}  e5 {[%clk 0:02:55]} 2. Nf3 {[%clk 0:03:00]}  Nc6 {[%clk 0:02:55]} 3. Bb5 {[%clk 0:03:00]}  a6 {[%clk 0:02:56]} 4. Ba4 {[%clk 0:03:00]}  Nf6 {[%clk 0:02:55]} 5. d3 {[%clk 0:03:00]}  d6 {[%clk 0:02:52]} 6. c3 {[%clk 0:03:00]}  Bd7 {[%clk 0:02:53]} 7. O-O {[%clk 0:03:00]}  g6 {[%clk 0:02:53]} 8. Bg5 {[%clk 0:02:58]}  Bg7 {[%clk 0:02:50]} 9. Re1 {[%clk 0:02:56]}  h6 {[%clk 0:02:50]} 10. Bh4 {[%clk 0:02:56]}  g5 {[%clk 0:02:45]} 11. Bg3 {[%clk 0:02:55]}  Nh5 {[%clk 0:02:36]} 12. Nbd2 {[%clk 0:02:55]}  Nf4 {[%clk 0:02:32]} 13. Nf1 {[%clk 0:02:53]}  h5 {[%clk 0:02:13]} 14. Bxf4 {[%clk 0:02:48]}  gxf4 {[%clk 0:02:04]} 15. d4 {[%clk 0:02:43]}  b5 {[%clk 0:01:59]} 16. Bb3 {[%clk 0:02:43]}  Qf6 {[%clk 0:01:54]} 17. Bd5 {[%clk 0:02:39]}  Rb8 {[%clk 0:01:48]} 18. Bxc6 {[%clk 0:02:22]}  Bxc6 {[%clk 0:01:48]} 19. dxe5 {[%clk 0:02:15]}  dxe5 {[%clk 0:01:48]} 20. N1d2 {[%clk 0:02:03]}  O-O {[%clk 0:01:48]} 21. Nb3 {[%clk 0:02:03]}  Rfd8 {[%clk 0:01:47]} 22. Qe2 {[%clk 0:02:01]}  Bf8 {[%clk 0:01:39]} 23. Rad1 {[%clk 0:02:00]}  Bd6 {[%clk 0:01:21]} 24. Rd2 {[%clk 0:01:58]}  Bd7 {[%clk 0:01:06]} 25. Red1 {[%clk 0:01:53]}  Be6 {[%clk 0:01:06]} 26. h3 {[%clk 0:01:36]}  Bc4 {[%clk 0:01:06]} 27. Qe1 {[%clk 0:01:36]}  b4 {[%clk 0:01:06]} 28. cxb4 {[%clk 0:01:34]}  Rxb4 {[%clk 0:00:58]} 29. Na5 {[%clk 0:01:33]}  Bb5 {[%clk 0:00:51]} 30. a3 {[%clk 0:01:30]}  Ra4 {[%clk 0:00:48]} 31. Nb7 {[%clk 0:01:30]}  Rd7 {[%clk 0:00:42]} 32. Nc5 {[%clk 0:01:30]}  Bxc5 {[%clk 0:00:40]} 33. Rxd7 {[%clk 0:01:29]}  Bd6 {[%clk 0:00:36]} 34. R7xd6 {[%clk 0:01:24]}  cxd6 {[%clk 0:00:36]} 35. Qd2 {[%clk 0:01:17]}  Rxe4 {[%clk 0:00:34]} 36. Qd5 {[%clk 0:01:09]}  Re2 {[%clk 0:00:31]} 37. b3 {[%clk 0:01:06]}  Rb2 {[%clk 0:00:20]} 38. a4 {[%clk 0:01:03]}  Be2 {[%clk 0:00:20]} 39. Rc1 {[%clk 0:00:55]}  Qe6 {[%clk 0:00:11]} 40. Qxe6 {[%clk 0:00:39]}  fxe6 {[%clk 0:00:12]} 41. Ng5 {[%clk 0:00:38]}  Rxb3 {[%clk 0:00:11]} 42. Rc7 {[%clk 0:00:36]}  d5 {[%clk 0:00:07]} 43. Nh7 {[%clk 0:00:34]}  d4 {[%clk 0:00:05]} 44. Nf6+ {[%clk 0:00:34]}  Kf8 {[%clk 0:00:06]} 45. Rd7 {[%clk 0:00:28]}  Bd3 {[%clk 0:00:03]} 46. Nxh5 {[%clk 0:00:27]}  Bf5 {[%clk 0:00:03]} 47. Nf6 {[%clk 0:00:21]}  Rb1+ {[%clk 0:00:03]} 48. Kh2 {[%clk 0:00:21]}  d3 {[%clk 0:00:04]} 49. h4 {[%clk 0:00:21]}  Rd1 {[%clk 0:00:04]} 50. h5 {[%clk 0:00:21]}  d2 {[%clk 0:00:04]} 51. h6 {[%clk 0:00:22]}  e4 {[%clk 0:00:03]} 52. h7 {[%clk 0:00:22]}  Bxh7 {[%clk 0:00:03]} 53. Nxh7+ {[%clk 0:00:22]}  Ke8 {[%clk 0:00:04]} 54. Nf6+ {[%clk 0:00:22]}  Kf8 {[%clk 0:00:05]} 55. Nxe4 {[%clk 0:00:23]}  Re1 {[%clk 0:00:04]} 56. Nxd2 {[%clk 0:00:23]}  Ke8 {[%clk 0:00:04]} 57. Rd4 {[%clk 0:00:22]}  Re2 {[%clk 0:00:04]} 58. Ne4 {[%clk 0:00:20]}  e5 {[%clk 0:00:04]} 59. Rc4 {[%clk 0:00:20]}  Ra2 {[%clk 0:00:04]} 60. f3 {[%clk 0:00:21]}  Ke7 {[%clk 0:00:05]} 61. Kh3 {[%clk 0:00:21]}  Ke6 {[%clk 0:00:06]} 62. Kg4 {[%clk 0:00:22]}  Kd5 {[%clk 0:00:06]} 63. Rc5+ {[%clk 0:00:22]}  Kd4 {[%clk 0:00:07]} 64. Ra5 {[%clk 0:00:22]}  Rxg2+ {[%clk 0:00:06]} 65. Kf5 {[%clk 0:00:22]}  Rh2 {[%clk 0:00:05]} 66. Rxa6 {[%clk 0:00:21]}  Rh5+ {[%clk 0:00:05]} 67. Kg4 {[%clk 0:00:22]}  Rh1 {[%clk 0:00:04]} 68. Rc6 {[%clk 0:00:18]}  Ke3 {[%clk 0:00:04]} 69. Rc3+ {[%clk 0:00:18]}  Kd4 {[%clk 0:00:04]} 70. Ra3 {[%clk 0:00:18]}  Rg1+ {[%clk 0:00:05]} 71. Kf5 {[%clk 0:00:18]}  Rg7 {[%clk 0:00:03]} 72. a5 {[%clk 0:00:18]}  Ra7 {[%clk 0:00:04]} 73. a6 {[%clk 0:00:19]}  Kd5 {[%clk 0:00:04]} 74. Kf6 {[%clk 0:00:18]}  Kd4 {[%clk 0:00:03]} 75. Ke6 {[%clk 0:00:18]}  Kc4 {[%clk 0:00:03]} 76. Kxe5 {[%clk 0:00:18]}  Kb4 {[%clk 0:00:04]} 77. Ra1 {[%clk 0:00:18]}  Kc4 {[%clk 0:00:05]} 78. Kxf4 {[%clk 0:00:19]}  Kb4 {[%clk 0:00:06]} 79. Ke3 {[%clk 0:00:19]}  Kc4 {[%clk 0:00:07]} 80. f4 {[%clk 0:00:19]}  Kb4 {[%clk 0:00:07]} 81. f5 {[%clk 0:00:20]}  Kc4 {[%clk 0:00:08]} 82. f6 {[%clk 0:00:20]}  Kb4 {[%clk 0:00:09]} 83. f7 {[%clk 0:00:19]}  Kc4 {[%clk 0:00:10]} 84. f8=Q {[%clk 0:00:19]}  Kb3 {[%clk 0:00:10]} 85. Qb8+ {[%clk 0:00:19]}  Kc4 {[%clk 0:00:11]} 86. Qxa7 {[%clk 0:00:17]}  Kb3 {[%clk 0:00:12]} 87. Qb6+ {[%clk 0:00:18]}  Kc4 {[%clk 0:00:12]} 88. Qc5+ {[%clk 0:00:17]}  Kb3 {[%clk 0:00:13]} 89. Qc3# {[%clk 0:00:17]} 1-0


[Site "https://www.chess.com"]

[Event "Titled Tuesday Blitz December 14 2021"]
[White "Ghimpu, Samuel-Timotei"]
[Black "Makarian, Rudik"]
[WhiteFideId "1238175"]
[BlackFideId "44105681"]
[WhiteElo "2012"]
[BlackElo "2486"]
[Result "0-1"]
[Round "06"]
[TimeControl "180+1"]
[Date "2021.12.14"]
[WhiteClock "0:00:09"]
[BlackClock "0:00:55"]

1. b3 {[%clk 0:03:00]}  d5 {[%clk 0:02:59]} 2. Bb2 {[%clk 0:03:01]}  Bg4 {[%clk 0:02:59]} 3. f3 {[%clk 0:03:00]}  Bf5 {[%clk 0:02:59]} 4. h4 {[%clk 0:03:01]}  h5 {[%clk 0:02:49]} 5. Nh3 {[%clk 0:02:43]}  Bxh3 {[%clk 0:02:46]} 6. Rxh3 {[%clk 0:02:42]}  e6 {[%clk 0:02:45]} 7. e3 {[%clk 0:02:34]}  Be7 {[%clk 0:02:42]} 8. g3 {[%clk 0:02:27]}  Bf6 {[%clk 0:02:42]} 9. d4 {[%clk 0:02:27]}  Ne7 {[%clk 0:02:40]} 10. Nc3 {[%clk 0:02:20]}  c5 {[%clk 0:02:37]} 11. dxc5 {[%clk 0:02:08]}  Qa5 {[%clk 0:02:33]} 12. Qd2 {[%clk 0:02:08]}  Nbc6 {[%clk 0:02:29]} 13. Na4 {[%clk 0:01:57]}  Qc7 {[%clk 0:02:12]} 14. Bxf6 {[%clk 0:01:56]}  gxf6 {[%clk 0:02:13]} 15. Kf2 {[%clk 0:01:42]}  Rg8 {[%clk 0:02:11]} 16. Nc3 {[%clk 0:01:38]}  a6 {[%clk 0:02:11]} 17. Be2 {[%clk 0:01:34]}  Rd8 {[%clk 0:02:08]} 18. Na4 {[%clk 0:01:28]}  Nf5 {[%clk 0:02:02]} 19. c3 {[%clk 0:01:26]}  Rxg3 {[%clk 0:02:00]} 20. Rah1 {[%clk 0:01:16]}  Ke7 {[%clk 0:02:00]} 21. Bd3 {[%clk 0:00:59]}  Rdg8 {[%clk 0:01:58]} 22. Bf1 {[%clk 0:00:40]}  Ne5 {[%clk 0:01:54]} 23. Rxg3 {[%clk 0:00:36]}  Rxg3 {[%clk 0:01:53]} 24. Bg2 {[%clk 0:00:35]}  Nxf3 {[%clk 0:01:16]} 25. Bxf3 {[%clk 0:00:30]}  Rxf3+ {[%clk 0:01:17]} 26. Kxf3 {[%clk 0:00:31]}  Qg3+ {[%clk 0:01:18]} 27. Ke2 {[%clk 0:00:30]}  Qg2+ {[%clk 0:01:19]} 28. Kd3 {[%clk 0:00:27]}  Qe4+ {[%clk 0:01:19]} 29. Ke2 {[%clk 0:00:26]}  Qxh1 {[%clk 0:01:17]} 30. Qd3 {[%clk 0:00:13]}  Qxh4 {[%clk 0:01:11]} 31. c6 {[%clk 0:00:12]}  bxc6 {[%clk 0:01:07]} 32. Qxa6 {[%clk 0:00:12]}  Qh2+ {[%clk 0:01:02]} 33. Kd3 {[%clk 0:00:12]}  Qg2 {[%clk 0:00:58]} 34. Qa7+ {[%clk 0:00:10]}  Kf8 {[%clk 0:00:58]} 35. Nc5 {[%clk 0:00:08]}  Qf1+ {[%clk 0:00:55]} 36. Kd2 {[%clk 0:00:08]}  Qf2+ {[%clk 0:00:55]} 37. Kd1 {[%clk 0:00:09]}  Nxe3+ {[%clk 0:00:55]} 0-1


[Site "https://www.chess.com"]

[Event "Titled Tuesday Blitz December 14 2021"]
[White "Ibrahimli, Murad"]
[Black "Pichot, Alan"]
[WhiteFideId "13410229"]
[BlackFideId "110973"]
[WhiteElo "2109"]
[BlackElo "2629"]
[Result "1/2-1/2"]
[Round "06"]
[TimeControl "180+1"]
[Date "2021.12.14"]
[WhiteClock "0:00:05"]
[BlackClock "0:00:08"]

1. d4 {[%clk 0:03:00]}  Nf6 {[%clk 0:02:59]} 2. c4 {[%clk 0:03:00]}  e6 {[%clk 0:02:58]} 3. Nf3 {[%clk 0:02:55]}  d5 {[%clk 0:02:58]} 4. Nc3 {[%clk 0:02:55]}  Bb4 {[%clk 0:02:56]} 5. Bg5 {[%clk 0:02:51]}  h6 {[%clk 0:02:55]} 6. Bxf6 {[%clk 0:02:51]}  Qxf6 {[%clk 0:02:56]} 7. Qa4+ {[%clk 0:02:50]}  Nc6 {[%clk 0:02:56]} 8. e3 {[%clk 0:02:50]}  O-O {[%clk 0:02:55]} 9. Be2 {[%clk 0:02:48]}  dxc4 {[%clk 0:02:45]} 10. Bxc4 {[%clk 0:02:46]}  Bxc3+ {[%clk 0:02:46]} 11. bxc3 {[%clk 0:02:45]}  Bd7 {[%clk 0:02:47]} 12. O-O {[%clk 0:02:31]}  Qe7 {[%clk 0:02:46]} 13. Be2 {[%clk 0:02:12]}  Ne5 {[%clk 0:02:01]} 14. Qb3 {[%clk 0:02:12]}  Nxf3+ {[%clk 0:01:58]} 15. Bxf3 {[%clk 0:02:13]}  Rab8 {[%clk 0:01:58]} 16. Qb4 {[%clk 0:02:10]}  Qxb4 {[%clk 0:01:53]} 17. cxb4 {[%clk 0:02:10]}  Rfc8 {[%clk 0:01:53]} 18. a4 {[%clk 0:02:02]}  Kf8 {[%clk 0:01:53]} 19. Rfc1 {[%clk 0:02:02]}  Ke7 {[%clk 0:01:53]} 20. Kf1 {[%clk 0:01:58]}  c6 {[%clk 0:01:47]} 21. a5 {[%clk 0:01:55]}  Kd6 {[%clk 0:01:40]} 22. Ke2 {[%clk 0:01:53]}  Rc7 {[%clk 0:01:40]} 23. Kd2 {[%clk 0:01:53]}  Rbc8 {[%clk 0:01:41]} 24. Be4 {[%clk 0:01:49]}  e5 {[%clk 0:01:34]} 25. Kc3 {[%clk 0:01:07]}  Be6 {[%clk 0:01:29]} 26. Rd1 {[%clk 0:00:55]}  exd4+ {[%clk 0:01:18]} 27. Rxd4+ {[%clk 0:00:54]}  Ke7 {[%clk 0:01:19]} 28. Rd2 {[%clk 0:00:52]}  Rd7 {[%clk 0:01:14]} 29. Rad1 {[%clk 0:00:50]}  Rxd2 {[%clk 0:01:09]} 30. Rxd2 {[%clk 0:00:51]}  b6 {[%clk 0:01:10]} 31. axb6 {[%clk 0:00:48]}  axb6 {[%clk 0:01:11]} 32. Rd1 {[%clk 0:00:45]}  Rc7 {[%clk 0:01:07]} 33. Ra1 {[%clk 0:00:44]}  Kd6 {[%clk 0:01:03]} 34. Ra6 {[%clk 0:00:43]}  Rb7 {[%clk 0:01:02]} 35. Kd4 {[%clk 0:00:43]}  Rb8 {[%clk 0:00:54]} 36. f4 {[%clk 0:00:41]}  f5 {[%clk 0:00:48]} 37. Bf3 {[%clk 0:00:41]}  g5 {[%clk 0:00:49]} 38. h3 {[%clk 0:00:32]}  Rb7 {[%clk 0:00:39]} 39. b5 {[%clk 0:00:19]}  c5+ {[%clk 0:00:39]} 40. Kc3 {[%clk 0:00:20]}  Bd5 {[%clk 0:00:37]} 41. fxg5 {[%clk 0:00:14]}  Bxf3 {[%clk 0:00:26]} 42. gxf3 {[%clk 0:00:15]}  hxg5 {[%clk 0:00:27]} 43. f4 {[%clk 0:00:07]}  gxf4 {[%clk 0:00:25]} 44. exf4 {[%clk 0:00:07]}  Kd5 {[%clk 0:00:26]} 45. Ra8 {[%clk 0:00:04]}  Ke4 {[%clk 0:00:26]} 46. Kc4 {[%clk 0:00:03]}  Kxf4 {[%clk 0:00:22]} 47. Kd5 {[%clk 0:00:03]}  Rh7 {[%clk 0:00:20]} 48. Rb8 {[%clk 0:00:02]}  Rh6 {[%clk 0:00:20]} 49. Rc8 {[%clk 0:00:02]}  Kg3 {[%clk 0:00:19]} 50. Rc6 {[%clk 0:00:03]}  Rh5 {[%clk 0:00:17]} 51. Rxb6 {[%clk 0:00:03]}  f4+ {[%clk 0:00:17]} 52. Kc4 {[%clk 0:00:03]}  f3 {[%clk 0:00:15]} 53. Rf6 {[%clk 0:00:04]}  Rh4+ {[%clk 0:00:09]} 54. Kxc5 {[%clk 0:00:04]}  f2 {[%clk 0:00:06]} 55. b6 {[%clk 0:00:04]}  Rxh3 {[%clk 0:00:07]} 56. b7 {[%clk 0:00:04]}  Rh8 {[%clk 0:00:07]} 57. Kc6 {[%clk 0:00:04]}  Kg2 {[%clk 0:00:07]} 58. Kc7 {[%clk 0:00:04]}  f1=Q {[%clk 0:00:07]} 59. Rxf1 {[%clk 0:00:04]}  Kxf1 {[%clk 0:00:08]} 60. b8=Q {[%clk 0:00:04]}  Rxb8 {[%clk 0:00:08]} 61. Kxb8 {[%clk 0:00:05]} 1/2-1/2


[Site "https://www.chess.com"]

[Event "Titled Tuesday Blitz December 14 2021"]
[White "Kanyamarala, Tarun"]
[Black "Djordjevic, Vuk"]
[WhiteFideId "45004714"]
[BlackFideId "902098"]
[WhiteElo "2077"]
[BlackElo "2463"]
[Result "1-0"]
[Round "06"]
[TimeControl "180+1"]
[Date "2021.12.14"]
[WhiteClock "0:00:09"]
[BlackClock "0:00:01"]

1. d4 {[%clk 0:03:00]}  Nf6 {[%clk 0:02:59]} 2. c4 {[%clk 0:03:01]}  e6 {[%clk 0:02:59]} 3. Nc3 {[%clk 0:02:56]}  Bb4 {[%clk 0:02:59]} 4. Nf3 {[%clk 0:02:53]}  O-O {[%clk 0:02:58]} 5. Bg5 {[%clk 0:02:52]}  d5 {[%clk 0:02:53]} 6. e3 {[%clk 0:02:42]}  c6 {[%clk 0:02:52]} 7. Bd3 {[%clk 0:02:37]}  Nbd7 {[%clk 0:02:50]} 8. O-O {[%clk 0:02:36]}  dxc4 {[%clk 0:02:47]} 9. Bxc4 {[%clk 0:02:36]}  b5 {[%clk 0:02:47]} 10. Bd3 {[%clk 0:02:35]}  Bb7 {[%clk 0:02:46]} 11. a3 {[%clk 0:02:31]}  Be7 {[%clk 0:02:46]} 12. b4 {[%clk 0:02:31]}  a5 {[%clk 0:02:45]} 13. Rb1 {[%clk 0:02:31]}  axb4 {[%clk 0:02:40]} 14. axb4 {[%clk 0:02:30]}  Ra3 {[%clk 0:02:25]} 15. Qc2 {[%clk 0:02:23]}  h6 {[%clk 0:02:01]} 16. Bh4 {[%clk 0:02:20]}  Nd5 {[%clk 0:01:43]} 17. Bxe7 {[%clk 0:02:17]}  Qxe7 {[%clk 0:01:42]} 18. Nxd5 {[%clk 0:01:55]}  exd5 {[%clk 0:01:43]} 19. Nd2 {[%clk 0:01:52]}  Rfa8 {[%clk 0:01:29]} 20. Nb3 {[%clk 0:01:50]}  Ra2 {[%clk 0:01:20]} 21. Qc1 {[%clk 0:01:50]}  R8a3 {[%clk 0:00:58]} 22. Rd1 {[%clk 0:01:33]}  Qf6 {[%clk 0:00:46]} 23. Rd2 {[%clk 0:01:26]}  Nb6 {[%clk 0:00:38]} 24. Na5 {[%clk 0:01:10]}  Bc8 {[%clk 0:00:30]} 25. Rxa2 {[%clk 0:01:04]}  Rxa2 {[%clk 0:00:30]} 26. Rb2 {[%clk 0:01:04]}  Ra3 {[%clk 0:00:19]} 27. Rd2 {[%clk 0:01:04]}  Ra4 {[%clk 0:00:14]} 28. Rb2 {[%clk 0:01:01]}  Nc4 {[%clk 0:00:14]} 29. Bxc4 {[%clk 0:00:46]}  dxc4 {[%clk 0:00:14]} 30. h3 {[%clk 0:00:44]}  Qd6 {[%clk 0:00:13]} 31. Qb1 {[%clk 0:00:34]}  g6 {[%clk 0:00:11]} 32. Qe1 {[%clk 0:00:24]}  Ra3 {[%clk 0:00:10]} 33. Rb1 {[%clk 0:00:19]}  Ra2 {[%clk 0:00:09]} 34. Rd1 {[%clk 0:00:18]}  Rb2 {[%clk 0:00:06]} 35. e4 {[%clk 0:00:18]}  Bd7 {[%clk 0:00:05]} 36. d5 {[%clk 0:00:17]}  c5 {[%clk 0:00:03]} 37. e5 {[%clk 0:00:17]}  Qe7 {[%clk 0:00:03]} 38. d6 {[%clk 0:00:16]}  Qe8 {[%clk 0:00:03]} 39. bxc5 {[%clk 0:00:16]}  Qd8 {[%clk 0:00:03]} 40. c6 {[%clk 0:00:16]}  Be6 {[%clk 0:00:04]} 41. c7 {[%clk 0:00:15]}  Qd7 {[%clk 0:00:03]} 42. Nb7 {[%clk 0:00:12]}  Kg7 {[%clk 0:00:02]} 43. Nc5 {[%clk 0:00:12]}  Qc6 {[%clk 0:00:02]} 44. d7 {[%clk 0:00:10]}  Bxd7 {[%clk 0:00:02]} 45. Nxd7 {[%clk 0:00:09]}  Qxc7 {[%clk 0:00:02]} 46. e6 {[%clk 0:00:09]}  fxe6 {[%clk 0:00:01]} 47. Qxe6 {[%clk 0:00:09]}  Qf4 {[%clk 0:00:02]} 48. Qe7+ {[%clk 0:00:09]}  Qf7 {[%clk 0:00:02]} 49. Qe5+ {[%clk 0:00:09]}  Kh7 {[%clk 0:00:03]} 50. Qxb2 {[%clk 0:00:09]}  h5 {[%clk 0:00:03]} 51. Nf6+ {[%clk 0:00:09]}  Kh6 {[%clk 0:00:04]} 52. Qd2+ {[%clk 0:00:09]}  Kg7 {[%clk 0:00:03]} 53. Ne4 {[%clk 0:00:09]}  Qf5 {[%clk 0:00:01]} 54. Qd4+ {[%clk 0:00:09]}  Kh6 {[%clk 0:00:01]} 55. Ng3 {[%clk 0:00:09]} 1-0


[Site "https://www.chess.com"]